bitfinex/quotes_SOLUSD_20260305
["timestamp","ask_amount","ask_price","bid_price","bid_amount"]
[1772673889547,9.05457228,90.47,90.399,38.71724244]
[1772673889743,1.09878465,90.469,90.4,1.3065343]
[1772673890045,38.68429195,90.476,90.399,38.71724244]
[1772673890046,1.09878465,90.475,90.403,1.59085744]
[1772673890224,1.09878465,90.475,90.412,1.3065343]
[1772673890424,1.09878465,90.475,90.404,1.10614574]
[1772673890425,1.09878465,90.479,90.418,1.3065343]
[1772673892346,11.05241053,90.478,90.419,38.70867848]
[1772673892546,1.09878465,90.477,90.42,1.3065343]
[1772673893550,9.05457228,90.47,90.42,1.3065343]
[1772673893729,38.68343685,90.478,90.42,1.3065343]
[1772673893730,1.09878465,90.469,90.42,1.3065343]
[1772673893932,1.09878465,90.477,90.42,1.3065343]
[1772673894454,9.05457228,90.47,90.422,1.3065343]
[1772673894751,1.09878465,90.469,90.422,1.3065343]
[1772673895751,1.09878465,90.475,90.422,1.3065343]
[1772673898045,11.05289917,90.474,90.424,1.3065343]
[1772673898359,1.09878465,90.473,90.424,1.3065343]
[1772673898742,39.77880144,90.486,90.424,1.3065343]
[1772673900452,9.05457228,90.47,90.426,1.3065343]
[1772673900632,9.05457228,90.46,90.42,11.05938976]
[1772673900830,1.09878465,90.459,90.421,1.3065343]
[1772673901351,1.09878465,90.469,90.421,1.3065343]
[1772673902060,3.69383402,90.494,90.42,11.05938976]
[1772673902061,1.09878465,90.485,90.423,1.3065343]
[1772673902352,1.09878465,90.495,90.427,1.3065343]
[1772673902555,1.09878465,90.495,90.429,1.3065343]
[1772673902855,1.29878465,90.5,90.437,1.3065343]
[1772673903159,0.2,90.5,90.437,1.3065343]
[1772673903539,0.2,90.5,90.439,1.3065343]
[1772673903755,44.17575134,90.548,90.431,4.7996495]
[1772673903756,9.05457228,90.55,90.458,1.3065343]
[1772673903956,38.65310494,90.549,90.461,0.28432314]
[1772673904157,38.65310494,90.549,90.44,4.79953946]
[1772673904158,38.65310494,90.549,90.468,1.3065343]
[1772673904544,9.05457228,90.56,90.47,1.3065343]
[1772673905640,9.05457228,90.56,90.469,182.38291567]
[1772673905641,11.04083172,90.573,90.482,5.00036832]
[1772673905840,11.04083172,90.573,90.506,1.3065343]
[1772673906066,6.84914818,90.586,90.508,1.3065343]
[1772673906266,11.04075051,90.574,90.508,1.3065343]
[1772673906465,6.84914818,90.586,90.508,1.3065343]
[1772673906662,6.84914818,90.586,90.44,7.70399297]
[1772673906663,1.10533878,90.569,90.435,1.3065343]
[1772673906864,9.05457228,90.49,90.435,1.3065343]
[1772673907061,1.10533878,90.489,90.435,1.3065343]
[1772673907766,9.05457228,90.47,90.435,1.3065343]
[1772673907966,9.05457228,90.47,90.425,1.3065343]
[1772673908163,9.05457228,90.45,90.355,1.3065343]
[1772673908394,3.69383402,90.477,90.355,1.3065343]
[1772673908567,38.69583964,90.449,90.363,1.59085744]
[1772673908762,38.69583964,90.449,90.363,1.3065343]
[1772673909068,38.69583964,90.449,90.367,1.3065343]
[1772673909473,38.69583964,90.449,90.369,1.3065343]
[1772673909644,38.69583964,90.449,90.362,3.69383402]
[1772673909645,38.69583964,90.449,90.377,1.3065343]
[1772673910970,38.69583964,90.449,90.379,1.3065343]
[1772673911175,11.05595418,90.449,90.379,1.3065343]
[1772673911558,11.05595418,90.449,90.385,1.3065343]
[1772673911769,11.05595418,90.449,90.387,1.3065343]
[1772673912860,1.10533878,90.469,90.394,1.59085744]
[1772673913055,1.10533878,90.479,90.394,1.59085744]
[1772673914069,1.10533878,90.488,90.407,1.3065343]
[1772673914278,1.10533878,90.488,90.421,0.28432314]
[1772673914582,44.16570353,90.569,90.445,0.14216157]
[1772673914770,3.69383402,90.544,90.448,1.3065343]
[1772673914980,9.05457228,90.53,90.45,1.3065343]
[1772673915657,27.61400161,90.534,90.458,1.3065343]
[1772673915969,44.16570353,90.569,90.449,82.91965637]
[1772673915970,11.04428189,90.545,90.468,1.3065343]
[1772673916280,11.04428189,90.545,90.478,1.3065343]
[1772673917175,11.04428189,90.545,90.48,1.3065343]
[1772673918462,9.05457228,90.54,90.48,1.3065343]
[1772673918780,9.05457228,90.53,90.48,1.3065343]
[1772673919376,9.05457228,90.54,90.482,1.3065343]
[1772673920079,11.04428189,90.545,90.482,1.3065343]
[1772673921376,9.05457228,90.55,90.484,1.3065343]
[1772673921586,9.05457228,90.54,90.484,1.3065343]
[1772673922683,9.05457228,90.53,90.484,1.3065343]
[1772673922976,9.05457228,90.55,90.484,1.3065343]
[1772673924073,38.65310494,90.549,90.486,1.3065343]
[1772673926284,9.05457228,90.52,90.451,1.3065343]
[1772673927570,9.05457228,90.53,90.451,1.3065343]
[1772673927767,9.05457228,90.52,90.451,1.3065343]
[1772673928784,38.66591544,90.519,90.453,1.3065343]
[1772673930905,9.05457228,90.52,90.455,1.3065343]
[1772673931189,9.05457228,90.53,90.455,1.3065343]
[1772673932464,9.05457228,90.52,90.455,1.3065343]
[1772673933092,11.04740441,90.519,90.457,1.3065343]
[1772673933270,11.04740441,90.519,90.444,3.69383402]
[1772673933271,3.69383402,90.507,90.401,1.3065343]
[1772673933472,3.69383402,90.477,90.382,1.3065343]
[1772673933779,9.05457228,90.44,90.382,1.3065343]
[1772673934979,9.05457228,90.46,90.382,1.3065343]
[1772673935192,11.05314351,90.472,90.384,1.3065343]
[1772673935408,38.68471953,90.475,90.398,1.3065343]
[1772673935886,9.05457228,90.46,90.398,1.3065343]
[1772673936488,9.05457228,90.47,90.398,1.3065343]
[1772673936790,11.05277701,90.475,90.398,1.3065343]
[1772673937389,9.05457228,90.47,90.4,1.3065343]
[1772673937582,11.05228837,90.479,90.4,1.3065343]
[1772673937894,11.05228837,90.479,90.408,1.3065343]
[1772673938886,11.05106698,90.489,90.41,1.3065343]
[1772673939200,11.05106698,90.489,90.412,1.3065343]
[1772673939496,11.04984585,90.499,90.428,1.3065343]
[1772673940787,27.62281597,90.505,90.429,38.70439791]
[1772673941001,27.62281597,90.505,90.43,1.3065343]
[1772673941900,11.04794494,90.515,90.438,1.3065343]
[1772673942194,11.04737057,90.52,90.441,0.28432314]
[1772673942497,11.0476485,90.517,90.448,1.3065343]
[1772673943396,11.0476485,90.517,90.45,1.3065343]
[1772673943700,38.66676977,90.517,90.45,1.3065343]
[1772673944388,9.05457228,90.5,90.45,1.3065343]
[1772673945195,9.05457228,90.51,90.45,1.3065343]
[1772673945694,11.04857696,90.51,90.452,1.3065343]
[1772673948801,38.66676977,90.517,90.454,1.3065343]
[1772673949305,11.0476485,90.517,90.454,1.3065343]
[1772673949502,11.04717436,90.521,90.454,1.3065343]
[1772673950009,4.82477569,90.569,90.454,1.3065343]
[1772673950010,9.04229532,90.54,90.458,1.3065343]
[1772673950207,11.04496404,90.539,90.458,1.3065343]
[1772673951291,9.04229532,90.55,90.468,1.3065343]
[1772673951504,38.65139751,90.553,90.468,1.3065343]
[1772673951705,9.04229532,90.54,90.474,1.3065343]
[1772673952502,11.04325643,90.553,90.478,1.3065343]
[1772673953283,11.04496404,90.539,90.48,1.3065343]
[1772673954608,27.60580931,90.561,90.48,1.3065343]
[1772673954787,9.04229532,90.56,90.48,1.3065343]
[1772673954992,36.64830238,90.56,90.48,1.3065343]
[1772673955685,44.14549103,90.61,90.492,1.3065343]
[1772673955896,11.04130552,90.569,90.508,1.3065343]
[1772673956482,9.04229532,90.59,90.508,1.3065343]
[1772673956712,11.03992965,90.581,90.508,1.3065343]
[1772673957095,9.04229532,90.58,90.508,1.3065343]
[1772673957299,11.04130552,90.569,90.508,1.3065343]
[1772673957700,11.04130552,90.569,90.51,1.3065343]
[1772673957902,11.04071271,90.574,90.51,1.3065343]
[1772673958209,11.24121349,90.57,90.51,1.3065343]
[1772673958611,11.24121349,90.57,90.493,4.79889186]
[1772673958612,3.69383402,90.517,90.426,1.3065343]
[1772673958814,9.04229532,90.48,90.426,1.3065343]
[1772673959199,11.17476133,90.516,90.425,11.05888858]
[1772673959200,9.04229532,90.47,90.425,11.05888858]
[1772673959401,9.04229532,90.45,90.381,1.3065343]
[1772673959709,11.05595418,90.449,90.384,1.3065343]
[1772673959910,27.63437599,90.468,90.395,0.28432314]
[1772673960112,27.63437599,90.468,90.398,1.3065343]
[1772673960612,38.68728514,90.469,90.398,1.3065343]
[1772673960995,11.05204407,90.481,90.398,1.3065343]
[1772673961196,11.05204407,90.481,90.408,1.3065343]
[1772673961397,9.04229532,90.47,90.408,1.3065343]
[1772673961691,11.05473197,90.459,90.41,1.3065343]
[1772673962113,9.04229532,90.47,90.41,1.3065343]
[1772673962318,11.05253268,90.477,90.41,1.3065343]
[1772673963810,38.68386439,90.477,90.412,1.3065343]
[1772673964617,9.04229532,90.46,90.412,1.3065343]
[1772673965923,11.05473197,90.459,90.413,11.06035636]
[1772673966121,38.69156191,90.459,90.414,1.3065343]
[1772673966312,11.05473197,90.459,90.414,1.3065343]
[1772673966623,38.69156191,90.459,90.414,1.3065343]
[1772673968529,38.69156191,90.459,90.404,1.3065343]
[1772673968708,38.69156191,90.459,90.406,1.3065343]
[1772673968907,9.04229532,90.45,90.406,1.3065343]
[1772673969106,11.05473197,90.459,90.406,1.3065343]
[1772673970921,11.05351004,90.469,90.408,1.3065343]
[1772673971105,9.04229532,90.45,90.408,1.3065343]
[1772673972125,1.10505784,90.449,90.408,1.3065343]
[1772673973806,11.05607641,90.448,90.41,1.3065343]
[1772673974004,1.10505784,90.447,90.41,1.3065343]
[1772673974725,9.04229532,90.48,90.411,1.3065343]
[1772673975122,9.04229532,90.48,90.409,94.01718855]
[1772673975123,38.67616995,90.495,90.419,1.3065343]
[1772673975722,9.04229532,90.49,90.419,1.3065343]
[1772673975946,38.67873443,90.489,90.421,1.3065343]
[1772673978235,38.67446048,90.499,90.423,1.3065343]
[1772673978736,9.04229532,90.48,90.423,1.3065343]
[1772673981939,38.68300931,90.479,90.424,38.70653808]
[1772673982136,38.68300931,90.479,90.425,1.3065343]
[1772673983017,9.04229532,90.47,90.425,1.3065343]
[1772673983218,38.68300931,90.479,90.425,1.3065343]
[1772673983521,44.19659474,90.505,90.425,1.3065343]
[1772673983522,11.0511891,90.488,90.425,1.3065343]
[1772673983932,9.04229532,90.49,90.427,1.3065343]
[1772673985841,38.67873443,90.489,90.429,1.3065343]
[1772673988749,32.41014186,90.513,90.432,0.28432314]
[1772673988930,44.16958282,90.561,90.449,1.3065343]
[1772673988931,38.66207139,90.528,90.449,1.3065343]
[1772673989442,9.04229532,90.51,90.449,1.3065343]
[1772673991447,38.67018748,90.509,90.451,1.3065343]
[1772673993458,3.69383402,90.534,90.453,1.3065343]
[1772673993459,9.04229532,90.51,90.453,1.3065343]
[1772673995340,93.9029375,90.519,90.453,1.3065343]
[1772673996555,9.04229532,90.51,90.455,1.3065343]
[1772673996954,55.23702206,90.519,90.455,1.3065343]
[1772673997474,9.04229532,90.51,90.455,1.3065343]
[1772673999842,38.67018748,90.509,90.457,1.3065343]
[1772674002060,9.04229532,90.49,90.44,1.3065343]
[1772674002241,9.04229532,90.49,90.441,1.3065343]
[1772674002574,3.69383402,90.506,90.441,1.3065343]
[1772674003039,9.04229532,90.49,90.441,1.3065343]
[1772674003238,9.04229532,90.5,90.441,1.3065343]
[1772674003659,3.69383402,90.506,90.441,1.3065343]
[1772674003852,9.04229532,90.49,90.441,1.3065343]
[1772674004052,38.67873443,90.489,90.441,1.3065343]
[1772674004252,38.67873443,90.489,90.442,11.05680988]
[1772674004460,38.67873443,90.489,90.442,12.36334418]
[1772674004668,38.67873443,90.489,90.443,1.3065343]
[1772674006370,9.04229532,90.5,90.445,1.3065343]
[1772674006570,38.67189657,90.505,90.445,1.3065343]
[1772674007856,44.19449999,90.509,90.447,1.3065343]
[1772674012473,44.19449999,90.509,90.449,1.3065343]
[1772674013370,38.66676977,90.517,90.449,1.3065343]
[1772674014271,82.8573638,90.517,90.449,1.3065343]
[1772674014567,44.19059403,90.517,90.451,1.3065343]
[1772674016870,44.19059403,90.517,90.453,1.3065343]
[1772674017075,9.04458699,90.46,90.367,1.3065343]
[1772674017378,9.04458699,90.4,90.32,11.40087057]
[1772674017675,9.39651748,90.424,90.335,27.67455771]
[1772674017676,9.04458699,90.39,90.335,27.67455771]
[1772674017875,9.04458699,90.39,90.34,11.06920087]
[1772674018071,9.04458699,90.39,90.331,11.07039665]
[1772674018276,9.04458699,90.42,90.331,11.07039665]
[1772674018277,9.04458699,90.38,90.331,11.07039665]
[1772674018581,9.04458699,90.38,90.32,11.40087057]
[1772674018582,9.04458699,90.37,90.32,11.40087057]
[1772674018776,9.04458699,90.36,90.32,11.40087057]
[1772674018956,38.73438174,90.359,90.32,11.40087057]
[1772674019157,11.06696621,90.359,90.331,1.16568431]
[1772674019352,27.65211428,90.409,90.331,1.16568431]
[1772674019668,38.71295999,90.409,90.331,1.16568431]
[1772674019870,9.04458699,90.4,90.331,1.16568431]
[1772674020871,38.71295999,90.409,90.332,38.74595933]
[1772674021170,38.71295999,90.409,90.333,1.16568431]
[1772674021375,9.04458699,90.4,90.333,1.16568431]
[1772674021578,38.71295999,90.409,90.333,1.16568431]
[1772674022180,9.04458699,90.4,90.333,1.16568431]
[1772674022873,9.04458699,90.38,90.333,1.16568431]
[1772674023058,9.04458699,90.36,90.323,1.16568431]
[1772674023679,9.04458699,90.35,90.32,11.40087057]
[1772674023884,9.04458699,90.36,90.321,1.16568431]
[1772674024674,9.04458699,90.35,90.321,1.16568431]
[1772674024983,9.04458699,90.35,90.32,11.40087057]
[1772674025356,11.06819112,90.349,90.321,1.16568431]
[1772674025775,38.73866893,90.349,90.321,1.16568431]
[1772674026560,9.04458699,90.37,90.322,1.16568431]
[1772674027157,9.04458699,90.36,90.322,1.16568431]
[1772674027579,11.7463069,90.399,90.32,11.40087057]
[1772674027580,1.10604785,90.392,90.324,1.16568431]
[1772674027788,1.10604785,90.398,90.33,1.16568431]
[1772674028975,1.10604785,90.408,90.33,1.16568431]
[1772674029589,38.7138164,90.407,90.332,1.16568431]
[1772674029892,9.04458699,90.4,90.332,1.16568431]
[1772674030068,1.10604785,90.399,90.332,1.16568431]
[1772674030791,11.06219164,90.398,90.333,38.74553042]
[1772674031088,1.10604785,90.397,90.334,1.16568431]
[1772674035774,11.06243639,90.396,90.336,1.16568431]
[1772674036074,1.10604785,90.395,90.34,1.16568431]
[1772674036278,12.16689356,90.409,90.34,1.16568431]
[1772674036985,11.05910279,90.424,90.36,1.16568431]
[1772674037192,1.10604785,90.423,90.36,1.16568431]
[1772674037682,1.10604785,90.423,90.362,1.16568431]
[1772674037874,11.05925549,90.422,90.362,1.16568431]
[1772674038185,1.10604785,90.421,90.362,1.16568431]
[1772674039192,1.10604785,90.432,90.369,0.28432314]
[1772674039377,1.10604785,90.431,90.37,1.16568431]
[1772674039694,1.10604785,90.442,90.37,1.16568431]
[1772674039875,11.05693214,90.441,90.372,1.16568431]
[1772674040083,1.10604785,90.44,90.372,1.16568431]
[1772674040483,1.10604785,90.44,90.38,1.16568431]
[1772674041084,1.10604785,90.44,90.387,0.28432314]
[1772674041373,1.10604785,90.448,90.39,1.16568431]
[1772674041884,1.10604785,90.453,90.39,1.16568431]
[1772674042077,11.05558749,90.452,90.392,1.16568431]
[1772674042278,1.10604785,90.451,90.392,1.16568431]
[1772674044192,11.05583195,90.45,90.394,1.16568431]
[1772674044389,1.10604785,90.449,90.394,1.16568431]
[1772674044887,9.04458699,90.44,90.394,1.16568431]
[1772674045193,1.10604785,90.439,90.394,1.16568431]
[1772674046603,11.05729892,90.438,90.396,1.16568431]
[1772674046801,1.10604785,90.437,90.396,1.16568431]
[1772674047379,1.10604785,90.449,90.396,1.16568431]
[1772674048506,11.0558228,90.451,90.396,1.16568431]
[1772674048507,1.10604785,90.45,90.396,1.16568431]
[1772674049198,11.05595418,90.449,90.398,1.16568431]
[1772674049382,1.10604785,90.448,90.398,1.16568431]
[1772674051201,9.04458699,90.48,90.401,1.45000745]
[1772674051408,11.05106698,90.489,90.403,1.45000745]
[1772674051579,11.04994052,90.499,90.414,1.16568431]
[1772674051777,11.04994052,90.499,90.437,0.28432314]
[1772674051986,11.04994052,90.499,90.415,1.10601117]
[1772674051987,11.05106698,90.489,90.438,1.16568431]
[1772674052302,0.2,90.49,90.44,1.16568431]
[1772674053380,11.25095443,90.49,90.442,1.16568431]
[1772674053594,0.2,90.49,90.442,1.16568431]
[1772674055377,0.2,90.49,90.443,93.9818449]
[1772674055580,0.2,90.49,90.444,1.16568431]
[1772674057786,11.05106698,90.489,90.446,1.16568431]
[1772674060206,38.67873443,90.489,90.439,1.16568431]
[1772674061710,11.05106698,90.489,90.439,1.16568431]
[1772674062407,38.67873443,90.489,90.441,1.16568431]
[1772674062811,11.05106698,90.489,90.441,1.16568431]
[1772674062996,38.67873443,90.489,90.441,1.16568431]
[1772674064496,38.67873443,90.489,90.443,1.16568431]
[1772674064815,11.05106698,90.489,90.443,1.16568431]
[1772674065503,0.2,90.49,90.443,1.16568431]
[1772674066301,11.05106698,90.489,90.443,1.16568431]
[1772674067209,0.2,90.49,90.445,1.16568431]
[1772674068896,0.2,90.49,90.449,1.16568431]
[1772674069811,0.2,90.49,90.451,1.16568431]
[1772674072427,0.2,90.49,90.453,1.16568431]
[1772674075426,0.2,90.49,90.455,1.16568431]
[1772674075610,11.04630611,90.528,90.456,1.45000745]
[1772674075922,9.04131649,90.52,90.456,1.16568431]
[1772674077525,9.04131649,90.49,90.412,1.16568431]
[1772674077714,9.04131649,90.47,90.412,1.16568431]
[1772674080232,38.68728514,90.469,90.414,1.16568431]
[1772674080404,9.04131649,90.46,90.408,12.22661292]
[1772674080811,9.04131649,90.46,90.409,1.16568431]
[1772674082327,11.05473197,90.459,90.411,1.16568431]
[1772674082508,38.69156191,90.459,90.411,1.16568431]
[1772674085313,38.68728514,90.469,90.413,1.16568431]
[1772674085924,11.05351004,90.469,90.413,1.16568431]
[1772674086822,38.68728514,90.469,90.413,1.16568431]
[1772674087418,38.68300931,90.479,90.415,1.16568431]
[1772674089435,9.04131649,90.47,90.417,1.16568431]
[1772674089624,9.04131649,90.48,90.417,1.16568431]
[1772674093549,99.44811909,90.5,90.419,1.16568431]
[1772674093550,47.71534963,90.5,90.419,1.16568431]
[1772674093918,138.12154694,90.5,90.419,1.16568431]
[1772674094125,9.04131649,90.48,90.419,1.16568431]
[1772674094424,87.09506201,90.5,90.419,1.16568431]
[1772674095024,4.22213385,90.49,90.419,1.16568431]
[1772674095332,4.22213385,90.48,90.419,1.16568431]
[1772674095841,38.68300931,90.479,90.421,1.16568431]
[1772674096948,4.22213385,90.47,90.421,1.16568431]
[1772674098029,4.22213385,90.48,90.422,11.05925549]
[1772674098242,4.22213385,90.48,90.423,1.16568431]
[1772674098848,4.22213385,90.49,90.423,1.16568431]
[1772674099725,4.22213385,90.48,90.423,1.16568431]
[1772674100425,9.04966066,90.48,90.424,38.70653808]
[1772674100744,9.04966066,90.48,90.425,1.16568431]
[1772674101543,9.04966066,90.49,90.425,1.16568431]
[1772674102844,38.67873443,90.489,90.427,1.16568431]
[1772674105026,38.67446048,90.499,90.429,1.16568431]
[1772674106048,9.04966066,90.47,90.429,1.16568431]
[1772674106347,9.04966066,90.48,90.429,1.16568431]
[1772674107434,38.68300931,90.479,90.43,11.05827712]
[1772674107637,38.68300931,90.479,90.431,1.16568431]
[1772674110637,4.82477569,90.521,90.431,0.28432314]
[1772674110952,0.2,90.57,90.422,270.9517595]
[1772674110953,38.66762414,90.515,90.461,0.87178708]
[1772674112444,11.04655016,90.526,90.461,0.87178708]
[1772674112847,11.04655016,90.526,90.463,0.94176789]
[1772674113828,11.04655016,90.526,90.465,0.94176789]
[1772674114954,0.02356345,90.509,90.467,0.94176789]
[1772674115144,0.02356345,90.519,90.467,0.94176789]
[1772674115330,11.47266586,90.526,90.467,0.94176789]
[1772674115652,18.05026965,90.53,90.467,0.94176789]
[1772674115959,7.0041786,90.53,90.475,0.94176789]
[1772674116554,11.04618409,90.529,90.475,0.94176789]
[1772674116944,11.04618409,90.529,90.477,0.94176789]
[1772674117650,7.0041786,90.53,90.479,0.94176789]
[1772674117852,0.04255235,90.563,90.493,0.94176789]
[1772674118050,0.04255235,90.563,90.495,0.94176789]
[1772674119041,0.04255235,90.563,90.497,0.94176789]
[1772674122338,0.04255235,90.563,90.499,0.94176789]
[1772674124465,0.04255235,90.563,90.501,0.94176789]
[1772674126868,0.04255235,90.563,90.503,0.94176789]
[1772674127668,4.21582131,90.56,90.503,0.94176789]
[1772674127869,0.09103944,90.559,90.503,0.94176789]
[1772674130060,0.09103944,90.559,90.505,0.98505575]
[1772674132769,0.09103944,90.559,90.507,0.98505575]
[1772674137474,0.09103944,90.559,90.509,0.98505575]
[1772674139380,0.09103944,90.559,90.511,0.98505575]
[1772674140707,0.09103944,90.559,90.503,0.98505575]
[1772674141554,0.09103944,90.559,90.504,38.67232387]
[1772674141869,0.09103944,90.559,90.505,0.98505575]
[1772674144481,0.16412795,90.558,90.507,0.98505575]
[1772674147566,0.17554303,90.556,90.509,0.98505575]
[1772674148169,0.17554303,90.556,90.478,61.3]
[1772674148170,0.17554303,90.556,90.48,0.98505575]
[1772674148368,0.1792558,90.539,90.48,0.98505575]
[1772674149882,0.1792558,90.539,90.465,3.69383402]
[1772674149883,3.69383402,90.566,90.483,0.28432314]
[1772674150181,0.18659197,90.564,90.485,0.98505575]
[1772674152887,38.64712961,90.563,90.486,38.68001679]
[1772674153078,0.19458228,90.562,90.487,0.98505575]
[1772674153588,0.19458228,90.562,90.489,0.98505575]
[1772674154277,0.19948345,90.559,90.489,0.98505575]
[1772674155387,0.19948345,90.559,90.488,61.3]
[1772674155388,0.20292431,90.557,90.491,0.98505575]
[1772674156786,0.20971103,90.529,90.485,0.98505575]
[1772674156981,0.20971103,90.529,90.478,0.98505575]
[1772674157386,0.20971103,90.519,90.478,0.98505575]
[1772674160782,0.2260693,90.517,90.478,0.98505575]
[1772674161393,0.2260693,90.517,90.48,0.94448533]
[1772674162872,0.23230301,90.515,90.48,0.94448533]
[1772674163998,0.23539439,90.515,90.482,0.94448533]
[1772674164173,11.04581805,90.532,90.482,0.94448533]
[1772674164374,0.23539439,90.525,90.482,0.94448533]
[1772674164574,0.23539439,90.525,90.437,88.45882798]
[1772674164575,0.23842703,90.519,90.475,0.94448533]
[1772674165382,0.23842703,90.517,90.469,11.05350291]
[1772674165696,0.23842703,90.517,90.47,0.94448533]
[1772674166392,11.04752645,90.518,90.47,0.94448533]
[1772674167375,11.04679422,90.524,90.471,38.68642989]
[1772674167577,11.04520803,90.537,90.473,0.28432314]
[1772674167891,11.04520803,90.537,90.475,0.99046988]
[1772674169896,11.30001231,90.546,90.477,0.99046988]
[1772674170098,0.25590214,90.545,90.477,0.99046988]
[1772674172692,0.26417798,90.543,90.479,0.99046988]
[1772674174893,11.04459808,90.542,90.481,0.99046988]
[1772674175093,11.04459808,90.542,90.485,0.99046988]
[1772674175695,0.27352408,90.541,90.485,0.99046988]
[1772674177204,0.2761151,90.539,90.487,0.99046988]
[1772674180610,0.28483413,90.537,90.489,0.99046988]
[1772674183506,55.21311038,90.559,90.466,61.3]
[1772674183507,0.29241751,90.535,90.491,0.99046988]
[1772674183708,0.29241751,90.577,90.496,0.28432314]
[1772674183897,0.29241751,90.568,90.505,0.99046988]
[1772674185391,38.64456932,90.569,90.505,0.99046988]
[1772674185595,0.2944149,90.577,90.514,0.99046988]
[1772674186307,11.04052187,90.576,90.514,0.99046988]
[1772674186806,0.29638738,90.584,90.514,0.99046988]
[1772674187312,11.04066428,90.575,90.514,0.99046988]
[1772674187788,11.04130552,90.569,90.516,0.99046988]
[1772674189903,11.04130552,90.569,90.518,1.04084406]
[1772674192403,0.30966401,90.568,90.518,11.04750598]
[1772674192618,0.30966401,90.568,90.518,12.08835004]
[1772674192798,0.30966401,90.568,90.519,1.04084406]
[1772674194297,0.31325542,90.566,90.521,1.04084406]
[1772674196722,11.04130552,90.569,90.523,1.04084406]
[1772674197117,11.35977187,90.569,90.523,1.04084406]
[1772674197418,0.31846635,90.568,90.523,1.04084406]
[1772674198520,0.32187126,90.566,90.516,1.04084406]
[1772674200628,0.32654897,90.564,90.518,1.04084406]
[1772674202924,0.32973715,90.562,90.518,1.04084406]
[1772674203232,0.32973715,90.529,90.459,1.04084406]
[1772674203408,0.32973715,90.509,90.459,1.04084406]
[1772674203607,0.33132263,90.499,90.459,1.04084406]
[1772674204024,0.33132263,90.507,90.459,1.04084406]
[1772674205234,0.33427204,90.505,90.461,1.04084406]
[1772674205621,11.04899122,90.506,90.461,1.04084406]
[1772674206811,0.33732302,90.505,90.461,1.04084406]
[1772674207222,0.33732302,90.503,90.462,11.05436536]
[1772674207526,0.33732302,90.503,90.463,1.04084406]
[1772674209207,0.34032973,90.519,90.465,1.04084406]
[1772674209520,44.16352854,90.573,90.465,1.04084406]
[1772674209521,0.34032973,90.538,90.465,1.04084406]
[1772674209714,0.34032973,90.538,90.467,1.04084406]
[1772674210309,7.43548782,90.557,90.473,1.04084406]
[1772674210509,0.34179633,90.556,90.485,1.04084406]
[1772674211233,0.34462868,90.554,90.487,1.04084406]
[1772674212618,0.34744799,90.549,90.487,1.04084406]
[1772674213020,0.34744799,90.529,90.486,11.05143337]
[1772674213226,0.34744799,90.509,90.468,12.0944482]
[1772674213410,0.34744799,90.499,90.458,11.05485418]
[1772674213611,0.3488485,90.489,90.439,1.04084406]
[1772674213824,0.3488485,90.499,90.439,1.04084406]
[1772674214326,0.3488485,90.515,90.439,1.04084406]
[1772674214713,38.66591544,90.519,90.439,1.04084406]
[1772674215017,0.35022572,90.518,90.439,1.04084406]
[1772674215227,0.35022572,90.516,90.445,1.04084406]
[1772674215813,0.35158793,90.515,90.445,1.04084406]
[1772674216159,0.35158793,90.509,90.445,1.04084406]
[1772674217424,0.35293251,90.507,90.447,1.04084406]
[1772674218237,0.35426295,90.489,90.438,1.04084406]
[1772674218539,0.35426295,90.479,90.402,1.10604558]
[1772674218830,0.35825974,90.449,90.401,11.06182453]
[1772674219214,0.35825974,90.466,90.402,1.10604558]
[1772674219536,0.35953389,90.464,90.404,1.10604558]
[1772674219837,0.35953389,90.459,90.404,1.10604558]
[1772674220129,11.05399878,90.465,90.404,1.10604558]
[1772674220833,0.35945952,90.464,90.404,1.10604558]
[1772674221418,0.35945952,90.462,90.406,1.10604558]
[1772674222335,0.36071908,90.459,90.406,1.10604558]
[1772674223137,0.36196807,90.449,90.395,11.06255876]
[1772674223432,0.36196807,90.447,90.395,11.06255876]
[1772674224721,0.36313562,90.439,90.381,1.10604558]
[1772674225743,0.36436389,90.419,90.374,11.06512935]
[1772674226041,0.36436389,90.419,90.369,11.06568477]
[1772674226240,0.36436389,90.419,90.364,11.06626582]
[1772674226426,0.26436389,90.409,90.361,1.10604558]
[1772674227028,0.26696434,90.407,90.361,1.10604558]
[1772674227343,11.05998938,90.416,90.371,1.09724445]
[1772674227842,0.26689186,90.415,90.362,38.73309576]
[1772674228428,0.26689186,90.415,90.37,1.19724445]
[1772674228634,11.05998938,90.416,90.37,1.19724445]
[1772674228836,0.26815908,90.415,90.37,1.19724445]
[1772674229540,0.26815908,90.413,90.371,11.06549667]
[1772674229749,0.26815908,90.413,90.372,1.09724445]
[1772674229929,0.26941393,90.456,90.372,1.09724445]
[1772674230124,0.26941393,90.439,90.372,1.09724445]
[1772674230530,0.27064717,90.446,90.372,1.09724445]
[1772674230738,11.05509861,90.456,90.375,1.09724445]
[1772674230948,11.05424866,90.463,90.395,1.09724445]
[1772674231346,11.05424866,90.463,90.397,1.09724445]
[1772674231725,0.27324923,90.462,90.397,1.09724445]
[1772674231929,16.2790071,90.465,90.397,1.09724445]
[1772674232139,0.27324923,90.488,90.411,1.09724445]